lending/lending_fUSD_20241005
["ID","MTS","AMOUNT","RATE_DAILY","PERIOD"]
[339904754,1728147152544,-500.0,0.00041643,120]
[339904755,1728147152553,-912.73,0.00041643,120]
[339904756,1728147152562,-789.28,0.00041643,120]
[339904757,1728147152571,-519.73,0.00041643,120]
[339904758,1728147152580,-1177.68,0.00041643,120]
[339904759,1728147152589,-213.16,0.00041643,120]
[339904760,1728147152598,-780.08,0.00041643,14]
[339904761,1728147152608,-505.2593609,0.00041643,120]
[339904762,1728147152617,-750.93,0.00041643,120]
[339904763,1728147152626,-669.75,0.00041643,120]
[339904764,1728147152636,-704.169704,0.00041643,120]
[339904765,1728147152645,-1092.22,0.00041643,120]
[339904766,1728147152655,-535.24,0.00041643,120]
[339904767,1728147152664,-1378.36,0.00041643,120]
[339904768,1728147152674,-745.48,0.00041643,120]
[339904769,1728147152683,-500.0,0.00041643,120]
[339904770,1728147152692,-500.0,0.00041643,120]
[339904771,1728147152701,-500.0,0.00041643,120]
[339904772,1728147152711,-1306.31,0.00041643,120]
[339904773,1728147152721,-500.0,0.00041643,120]
[339904774,1728147152731,-259.10212507,0.00041643,30]
[339904775,1728147152741,-524.51,0.00041643,120]
[339904776,1728147152750,-500.0,0.00041643,120]
[339904777,1728147152760,-500.0,0.00041643,120]
[339904778,1728147152771,-513.93,0.00041643,120]
[339904779,1728147152781,-500.0,0.00041643,120]
[339904780,1728147152790,-645.77,0.00041643,120]
[339904781,1728147152799,-833.87,0.00041643,120]
[339904782,1728147152808,-1307.93,0.00041643,120]
[339904783,1728147152818,-285.16151957,0.00041643,120]
[339904784,1728147152828,-500.0,0.00041643,120]
[339904785,1728147152837,-1199.16,0.00041643,120]
[339904786,1728147152847,-500.0,0.00041643,120]
[339904787,1728147152857,-500.0,0.00041643,120]
[339904788,1728147152866,-516.89373177,0.00041643,120]
[339904789,1728147152875,-500.0,0.00041643,120]
[339904790,1728147152885,-500.0,0.00041643,120]
[339904791,1728147152895,-985.84,0.00041643,120]
[339904792,1728147152905,-500.0,0.00041643,120]
[339904793,1728147152914,-203.34117728,0.00041643,120]
[339904794,1728147152924,-1049.3,0.00041643,120]
[339904795,1728147152933,-1294.19,0.00041643,120]
[339904796,1728147152945,-500.0,0.00041643,120]
[339904797,1728147152954,-793.27,0.00041643,120]
[339904798,1728147152963,-500.0,0.00041643,120]
[339904799,1728147152973,-500.0,0.00041643,120]
[339904800,1728147152982,-500.0,0.00041643,120]
[339904801,1728147152991,-500.0,0.00041643,120]
[339904802,1728147153001,-2888.1,0.00041643,120]
[339904803,1728147153010,-687.14,0.00041643,120]
[339904804,1728147153021,-580.39001406,0.00041643,120]
[339904805,1728147153030,-500.0,0.00041643,120]
[339904806,1728147153040,-989.98,0.00041643,120]
[339904807,1728147153050,-500.0,0.00041643,120]
[339904808,1728147153060,-1432.95,0.00041643,120]
[339904809,1728147153069,-724.21,0.00041643,120]
[339904810,1728147153079,-550.68,0.00041643,120]
[339904811,1728147153089,-543.28,0.00041643,120]
[339904812,1728147153099,-500.0,0.00041643,120]
[339904813,1728147153108,-753.39,0.00041643,120]
[339904814,1728147153118,-807.23,0.00041643,120]
[339904815,1728147153128,-500.0,0.00041643,120]
[339904816,1728147153137,-500.0,0.00041643,120]
[339904817,1728147153147,-708.64,0.00041643,120]
[339904818,1728147153157,-562.5,0.00041643,120]
[339904819,1728147153166,-500.0,0.00041643,120]
[339904820,1728147153176,-500.0,0.00041643,120]
[339904821,1728147153185,-500.0,0.00041643,120]
[339904822,1728147153195,-500.0,0.00041643,120]
[339904823,1728147153205,-687.72,0.00041643,120]
[339904824,1728147153214,-1195.82,0.00041643,120]
[339904825,1728147153228,-905.32,0.00041643,7]
[339904826,1728147153237,-968.05,0.00041643,120]
[339904827,1728147153247,-1289.36,0.00041643,120]
[339904828,1728147153257,-1417.19,0.00041643,120]
[339904829,1728147153267,-763.68,0.00041643,120]
[339904830,1728147153286,-500.0,0.00041643,120]
[339904831,1728147153295,-500.0,0.00041643,120]
[339904832,1728147153306,-1687.35,0.00041643,120]
[339904833,1728147153316,-888.0,0.00041643,120]
[339904834,1728147153326,-785.36,0.00041643,120]
[339904835,1728147153335,-500.0,0.00041643,120]
[339904836,1728147153346,-500.0,0.00041643,120]
[339904837,1728147153355,-1179.64,0.00041643,120]
[339904838,1728147153365,-582.36,0.00041643,120]
[339904839,1728147153374,-500.0,0.00041643,120]
[339904840,1728147153384,-643.53,0.00041643,120]
[339904841,1728147153394,-1536.92,0.00041643,120]
[339904842,1728147153406,-1213.33,0.00041643,120]
[339904843,1728147153416,-533.33,0.00041643,120]
[339904844,1728147153426,-711.86,0.00041643,120]
[339904845,1728147153435,-1142.18,0.00041643,120]
[339904846,1728147153446,-500.0,0.00041643,120]
[339904847,1728147153457,-786.32,0.00041643,120]
[339904848,1728147153466,-1479.11,0.00041643,120]
[339904849,1728147153478,-500.0,0.00041643,120]
[339904850,1728147153488,-500.0,0.00041643,120]
[339904851,1728147153498,-649.26,0.00041643,120]
[339904852,1728147153508,-903.52,0.00041643,120]
[339904853,1728147153518,-276.5934562,0.00041643,120]
[339904854,1728147153528,-500.0,0.00041643,120]
[339904855,1728147153538,-915.1,0.00041643,120]
[339904856,1728147153547,-500.0,0.00041643,120]
[339904857,1728147153557,-500.0,0.00041643,120]
[339904858,1728147153567,-642.95,0.00041643,120]
[339904859,1728147153576,-500.0,0.00041643,120]
[339904860,1728147153586,-931.55,0.00041643,120]
[339904861,1728147153595,-338.69604827,0.00041643,120]
[339904862,1728147153605,-1521.03,0.00041643,120]
[339904863,1728147153615,-500.0,0.00041643,120]
[339904864,1728147153624,-1032.8,0.00041643,120]
[339904865,1728147153634,-500.0,0.00041643,120]
[339904866,1728147153643,-500.0,0.00041643,120]
[339904867,1728147153653,-500.0,0.00041643,120]
[339904868,1728147153663,-500.0,0.00041643,120]
[339904869,1728147153672,-500.0,0.00041643,120]
[339904870,1728147153682,-901.49,0.00041643,120]
[339904871,1728147153691,-500.0,0.00041643,120]
[339904872,1728147153701,-1061.61,0.00041643,120]
[339904873,1728147153711,-1304.21,0.00041643,120]
[339904874,1728147153720,-701.97,0.00041643,120]
[339904875,1728147153730,-1011.56,0.00041643,120]
[339904876,1728147153740,-534.36,0.00041643,120]
[339904877,1728147153750,-589.66,0.00041643,120]
[339904878,1728147153759,-512.82,0.00041643,120]
[339904879,1728147153773,-500.0,0.00041643,120]
[339904880,1728147153783,-500.0,0.00041643,120]
[339904881,1728147153794,-500.0,0.00041643,120]
[339904882,1728147153803,-1198.94,0.00041643,120]
[339904883,1728147153814,-500.0,0.00041643,120]
[339904884,1728147153825,-836.31,0.00041643,120]
[339904885,1728147153835,-714.05,0.00041643,120]
[339904886,1728147153845,-908.97,0.00041643,120]
[339904887,1728147153855,-787.9,0.00041643,120]
[339904888,1728147153864,-500.0,0.00041643,120]
[339904889,1728147153874,-500.0,0.00041643,120]
[339904890,1728147153885,-500.0,0.00041643,120]
[339904891,1728147153894,-530.83,0.00041643,120]
[339904892,1728147153903,-1485.49,0.00041643,120]
[339904893,1728147153913,-500.0,0.00041643,120]
[339904894,1728147153922,-500.0,0.00041643,120]
[339904895,1728147153932,-500.0,0.00041643,120]
[339904896,1728147153941,-763.04,0.00041643,120]
[339904897,1728147153951,-518.08,0.00041643,120]
[339904898,1728147153960,-500.0,0.00041643,120]
[339904899,1728147153970,-500.0,0.00041643,120]
[339904900,1728147153979,-500.0,0.00041643,120]
[339904901,1728147153988,-563.43,0.00041643,120]
[339904902,1728147153998,-612.29,0.00041643,120]
[339904903,1728147154007,-500.0,0.00041643,120]
[339904904,1728147154018,-822.39,0.00041643,120]
[339904905,1728147154028,-500.0,0.00041643,120]
[339904906,1728147154037,-1306.65,0.00041643,120]
[339904907,1728147154047,-1233.21,0.00041643,120]
[339904908,1728147154057,-583.48,0.00041643,120]
[339904909,1728147154066,-868.45,0.00041643,120]
[339904910,1728147154075,-500.0,0.00041643,120]
[339904911,1728147154085,-732.59,0.00041643,120]
[339904912,1728147154095,-328.65690431,0.00041643,120]
[339904913,1728147154105,-500.0,0.00041643,120]
[339904914,1728147154114,-500.0,0.00041643,120]
[339904915,1728147154123,-500.0,0.00041643,120]
[339904916,1728147154133,-1321.45,0.00041643,120]
[339904917,1728147154143,-528.8,0.00041643,120]
[339904918,1728147154152,-658.55,0.00041643,120]
[339904919,1728147154161,-500.0,0.00041643,120]
[339904920,1728147154171,-500.0,0.00041643,120]
[339904921,1728147154180,-500.0,0.00041643,120]
[339904922,1728147154190,-500.0,0.00041643,120]
[339904923,1728147154199,-500.0,0.00041643,120]
[339904924,1728147154209,-993.81,0.00041643,120]
[339904925,1728147154219,-500.0,0.00041643,120]
[339904926,1728147154228,-500.0,0.00041643,120]
[339904927,1728147154238,-500.0,0.00041643,120]
[339904928,1728147154248,-500.0,0.00041643,120]
[339904929,1728147154258,-953.14,0.00041643,120]
[339904930,1728147154270,-1392.91,0.00041643,120]
[339904931,1728147154279,-500.0,0.00041643,120]
[339904932,1728147154289,-694.83,0.00041643,120]
[339904933,1728147154299,-500.0,0.00041643,120]
[339904934,1728147154312,-500.0,0.00041643,120]
[339904935,1728147154323,-500.0,0.00041643,120]
[339904936,1728147154333,-500.0,0.00041643,120]
[339904937,1728147154343,-500.0,0.00041643,120]
[339904938,1728147154353,-500.0,0.00041643,120]
[339904939,1728147154363,-698.41,0.00041643,120]
[339904940,1728147154373,-771.14,0.00041643,120]
[339904941,1728147154382,-500.0,0.00041643,120]
[339904942,1728147154393,-500.0,0.00041643,120]
[339904943,1728147154402,-500.0,0.00041643,120]
[339904944,1728147154413,-885.57,0.00041643,120]
[339904945,1728147154423,-1011.8,0.00041643,120]
[339904946,1728147154433,-563.02,0.00041643,120]
[339904947,1728147154442,-702.92,0.00041643,120]
[339904948,1728147154452,-500.0,0.00041643,120]
[339904949,1728147154461,-1294.33,0.00041643,120]
[339904950,1728147154470,-1565.99,0.00041643,120]
[339904951,1728147154479,-690.04,0.00041643,120]
[339904952,1728147154488,-918.37,0.00041643,120]
[339904953,1728147154498,-500.0,0.00041643,120]
[339904954,1728147154507,-500.0,0.00041643,120]
[339904955,1728147154517,-666.23,0.00041643,120]
[339904956,1728147154530,-894.45,0.00041643,120]
[339904957,1728147154539,-500.0,0.00041643,120]
[339904958,1728147154548,-500.0,0.00041643,120]
[339904959,1728147154557,-762.45,0.00041643,120]
[339904960,1728147154567,-500.0,0.00041643,120]
[339904961,1728147154577,-588.86,0.00041643,120]
[339904962,1728147154586,-1037.04,0.00041643,120]
[339904963,1728147154596,-729.96,0.00041643,120]
[339904964,1728147154605,-500.0,0.00041643,120]
[339904965,1728147154613,-578.4417366,0.00041643,120]
[339904966,1728147154623,-500.0,0.00041643,120]
[339904967,1728147154632,-500.0,0.00041643,120]
[339904968,1728147154641,-500.0,0.00041643,120]
[339904969,1728147154651,-922.09,0.00041643,120]
[339904970,1728147154660,-500.0,0.00041643,120]
[339904971,1728147154669,-500.0,0.00041643,120]
[339904972,1728147154679,-500.0,0.00041643,120]
[339904973,1728147154688,-500.0,0.00041643,120]
[339904974,1728147154698,-1207.02,0.00041643,120]
[339904975,1728147154707,-1060.1,0.00041643,120]
[339904976,1728147154717,-500.0,0.00041643,120]
[339904977,1728147154727,-500.0,0.00041643,120]
[339904978,1728147154737,-500.0,0.00041643,120]
[339904979,1728147154746,-500.0,0.00041643,120]
[339904980,1728147154756,-500.0,0.00041643,120]
[339904981,1728147154765,-500.0,0.00041643,120]
[339904982,1728147154777,-501.25,0.00041643,120]
[339904983,1728147154786,-668.81,0.00041643,120]
[339904984,1728147154795,-500.0,0.00041643,120]
[339904985,1728147154805,-525.19,0.00041643,120]
[339904986,1728147154815,-500.0,0.00041643,120]
[339904987,1728147154824,-648.61,0.00041643,120]
[339904988,1728147154834,-500.0,0.00041643,120]
[339904989,1728147154843,-500.0,0.00041643,120]
[339904990,1728147154853,-500.0,0.00041643,120]
[339904991,1728147154862,-500.0,0.00041643,120]
[339904992,1728147154872,-1480.12,0.00041643,120]
[339904993,1728147154882,-500.0,0.00041643,120]
[339904994,1728147154891,-500.0,0.00041643,120]
[339904995,1728147154901,-1830.42,0.00041643,120]
[339904996,1728147154911,-500.0,0.00041643,120]
[339904997,1728147154922,-1094.29,0.00041643,120]
[339904998,1728147154931,-500.0,0.00041643,120]
[339904999,1728147154940,-692.2,0.00041643,120]
[339905000,1728147154949,-1171.31,0.00041643,120]
[339905001,1728147154958,-500.0,0.00041643,120]
[339905002,1728147154968,-500.0,0.00041643,120]
[339905003,1728147154977,-1156.11,0.00041643,120]
[339905004,1728147154987,-980.64,0.00041643,120]
[339905005,1728147154997,-993.33,0.00041643,120]
[339905006,1728147155006,-500.0,0.00041643,120]
[339905007,1728147155016,-759.97,0.00041643,120]
[339905008,1728147155029,-500.0,0.00041643,120]
[339905009,1728147155038,-500.0,0.00041643,120]
[339905010,1728147155047,-500.0,0.00041643,120]
[339905011,1728147155056,-500.0,0.00041643,120]
[339905012,1728147155065,-809.87,0.00041643,120]
[339905013,1728147155074,-500.0,0.00041643,120]
[339905014,1728147155083,-500.0,0.00041643,120]
[339905015,1728147155092,-500.0,0.00041643,120]
[339905016,1728147155101,-500.0,0.00041643,120]
[339905017,1728147155111,-500.0,0.00041643,120]
[339905018,1728147155120,-1128.79,0.00041643,120]
[339905019,1728147155129,-620.59,0.00041643,120]
[339905020,1728147155138,-1212.72,0.00041643,120]
[339905021,1728147155147,-500.0,0.00041643,120]
[339905022,1728147155156,-1002.95,0.00041643,120]
[339905023,1728147155165,-737.61,0.00041643,120]
[339905024,1728147155175,-500.0,0.00041643,120]
[339905025,1728147155184,-455.21795512,0.00041643,120]
[339905026,1728147155193,-524.73,0.00041643,120]
[339905027,1728147155202,-500.0,0.00041643,120]
[339905028,1728147155211,-1543.57,0.00041643,120]
[339905029,1728147155220,-1377.95,0.00041643,120]
[339905030,1728147155229,-813.84,0.00041643,120]
[339905031,1728147155238,-531.1,0.00041643,120]
[339905032,1728147155247,-500.0,0.00041643,120]
[339905033,1728147155256,-500.0,0.00041643,120]
[339905034,1728147155265,-500.0,0.00041643,120]
[339905035,1728147155276,-961.07,0.00041643,120]
[339905036,1728147155286,-784.98,0.00041643,120]
[339905037,1728147155295,-917.69,0.00041643,120]
[339905038,1728147155304,-711.97,0.00041643,120]
[339905039,1728147155313,-500.0,0.00041643,120]
[339905040,1728147155322,-500.0,0.00041643,120]
[339905041,1728147155331,-500.0,0.00041643,120]
[339905042,1728147155341,-906.22,0.00041643,120]
[339905043,1728147155350,-500.0,0.00041643,120]
[339905044,1728147155360,-782.36,0.00041643,120]
[339905045,1728147155369,-677.3,0.00041643,120]
[339905046,1728147155378,-500.0,0.00041643,120]
[339905047,1728147155387,-500.0,0.00041643,120]
[339905048,1728147155397,-910.94,0.00041643,120]
[339905049,1728147155406,-1205.88,0.00041643,120]
[339905050,1728147155418,-1344.47,0.00041643,120]
[339905051,1728147155427,-542.61,0.00041643,120]
[339905052,1728147155437,-500.0,0.00041643,120]
[339905053,1728147155447,-814.32,0.00041643,120]
[339905054,1728147155458,-500.0,0.00041643,120]
[339905055,1728147155468,-948.43,0.00041643,120]
[339905056,1728147155477,-296.38322674,0.00041643,120]
[339905057,1728147155487,-504.25897048,0.00041643,120]
[339905058,1728147155499,-500.0,0.00041643,120]
[339905059,1728147155508,-500.0,0.00041643,120]
[339905060,1728147155517,-676.76,0.00041643,120]
[339905061,1728147155529,-1066.49,0.00041643,120]
[339905062,1728147155538,-500.0,0.00041643,120]
[339905063,1728147155547,-500.0,0.00041643,120]
[339905064,1728147155557,-1541.44,0.00041643,120]
[339905065,1728147155566,-1381.37,0.00041643,120]
[339905066,1728147155576,-500.0,0.00041643,120]
[339905067,1728147155585,-500.0,0.00041643,120]
[339905068,1728147155594,-500.0,0.00041643,120]
[339905069,1728147155604,-500.0,0.00041643,120]
[339905070,1728147155613,-500.0,0.00041643,120]
[339905071,1728147155624,-500.0,0.00041643,120]
[339905072,1728147155633,-500.0,0.00041643,120]
[339905073,1728147155643,-500.0,0.00041643,120]
[339905074,1728147155652,-1320.61,0.00041643,120]
[339905075,1728147155661,-659.62,0.00041643,120]
[339905076,1728147155671,-500.0,0.00041643,120]
[339905077,1728147155680,-500.0,0.00041643,120]
[339905078,1728147155689,-500.0,0.00041643,120]
[339905079,1728147155699,-500.0,0.00041643,120]
[339905080,1728147155708,-500.0,0.00041643,120]
[339905081,1728147155717,-500.0,0.00041643,120]
[339905082,1728147155726,-1392.32,0.00041643,120]
[339905083,1728147155736,-1117.39,0.00041643,120]
[339905084,1728147155745,-500.0,0.00041643,120]
[339905085,1728147155755,-999.0,0.00041643,120]
[339905086,1728147155764,-500.0,0.00041643,120]
[339905087,1728147155775,-500.0,0.00041643,120]
[339905088,1728147155785,-500.0,0.00041643,120]
[339905089,1728147155794,-500.0,0.00041643,120]
[339905090,1728147155804,-1450.24,0.00041643,120]
[339905091,1728147155813,-500.0,0.00041643,120]
[339905092,1728147155822,-995.8,0.00041643,120]
[339905093,1728147155832,-2170.1,0.00041643,120]
[339905094,1728147155841,-877.02,0.00041643,120]
[339905095,1728147155851,-500.0,0.00041643,120]
[339905096,1728147155860,-1452.19,0.00041643,120]
[339905097,1728147155870,-182.03,0.00041643,120]
[339905098,1728147155879,-500.0,0.00041643,120]
[339905099,1728147155887,-746.73,0.00041643,120]
[339905100,1728147155896,-1409.59,0.00041643,120]
[339905101,1728147155905,-679.22,0.00041643,120]
[339905102,1728147155915,-1020.04,0.00041643,120]
[339905103,1728147155924,-666.18,0.00041643,120]
[339905104,1728147155934,-500.0,0.00041643,120]
[339905105,1728147155943,-500.0,0.00041643,120]
[339905106,1728147155953,-500.0,0.00041643,120]
[339905107,1728147155962,-569.48,0.00041643,120]
[339905108,1728147155972,-980.44,0.00041643,120]
[339905109,1728147155981,-1089.28,0.00041643,120]
[339905110,1728147155991,-500.0,0.00041643,120]
[339905111,1728147156000,-568.81,0.00041643,120]
[339905112,1728147156009,-1354.9,0.00041643,120]
[339905113,1728147156019,-3092.09,0.00041643,120]
[339905114,1728147156028,-500.0,0.00041643,120]
[339905115,1728147156037,-1117.04,0.00041643,120]
[339905116,1728147156046,-500.0,0.00041643,120]
[339905117,1728147156055,-500.0,0.00041643,120]
[339905118,1728147156065,-1673.25,0.00041643,120]
[339905119,1728147156074,-500.0,0.00041643,120]
[339905120,1728147156083,-1400.9,0.00041643,120]
[339905121,1728147156092,-500.0,0.00041643,120]
[339905122,1728147156101,-521.3,0.00041643,120]
[339905123,1728147156111,-500.0,0.00041643,120]
[339905124,1728147156120,-957.32,0.00041643,120]
[339905125,1728147156129,-532.54,0.00041643,120]
[339905126,1728147156138,-500.0,0.00041643,120]
[339905127,1728147156148,-500.0,0.00041643,120]
[339905128,1728147156157,-500.0,0.00041643,120]
[339905129,1728147156166,-613.27,0.00041643,120]
[339905130,1728147156176,-500.0,0.00041643,120]
[339905131,1728147156185,-500.0,0.00041643,120]
[339905132,1728147156195,-1461.62,0.00041643,120]
[339905133,1728147156204,-815.17,0.00041643,120]
[339905134,1728147156214,-551.78,0.00041643,120]
[339905135,1728147156223,-500.0,0.00041643,120]
[339905136,1728147156232,-833.62,0.00041643,120]
[339905137,1728147156242,-973.8,0.00041643,120]
[339905138,1728147156251,-749.79,0.00041643,120]
[339905139,1728147156261,-500.0,0.00041643,120]
[339905140,1728147156271,-500.0,0.00041643,120]
[339905141,1728147156280,-500.0,0.00041643,120]
[339905142,1728147156290,-552.5,0.00041643,120]
[339905143,1728147156299,-500.0,0.00041643,120]
[339905144,1728147156310,-500.0,0.00041643,120]
[339905145,1728147156320,-500.0,0.00041643,120]
[339905146,1728147156329,-500.0,0.00041643,120]
[339905147,1728147156339,-595.63,0.00041643,120]
[339905148,1728147156347,-895.17,0.00041643,120]
[339905149,1728147156357,-538.69,0.00041643,120]
[339905150,1728147156367,-716.85,0.00041643,120]
[339905151,1728147156376,-500.0,0.00041643,120]
[339905152,1728147156387,-500.0,0.00041643,120]
[339905153,1728147156395,-500.0,0.00041643,120]
[339905154,1728147156405,-734.46,0.00041643,120]
[339905155,1728147156418,-500.0,0.00041643,120]
[339905156,1728147156428,-500.0,0.00041643,120]
[339905157,1728147156437,-744.23,0.00041643,120]
[339905158,1728147156561,-500.0,0.00041643,120]
[339905159,1728147156571,-1043.16,0.00041643,120]
[339905160,1728147156582,-544.13,0.00041643,120]
[339905161,1728147156591,-649.58,0.00041643,120]
[339905162,1728147156601,-526.24,0.00041643,120]
[339905163,1728147156610,-500.0,0.00041643,120]
[339905164,1728147156619,-500.0,0.00041643,120]
[339905165,1728147156629,-1194.16,0.00041643,120]
[339905166,1728147156639,-500.0,0.00041643,120]
[339905167,1728147156650,-837.39,0.00041643,120]
[339905168,1728147156659,-500.0,0.00041643,120]
[339905169,1728147156670,-500.0,0.00041643,120]
[339905170,1728147156680,-612.42,0.00041643,120]
[339905171,1728147156690,-510.48,0.00041643,120]
[339905172,1728147156700,-1245.75,0.00041643,120]
[339905173,1728147156709,-500.0,0.00041643,120]
[339905174,1728147156720,-896.41,0.00041643,120]
[339905175,1728147156730,-570.6,0.00041643,120]
[339905176,1728147156740,-912.71,0.00041643,120]
[339905177,1728147156750,-367.83503742,0.00041643,120]
[339905178,1728147156759,-935.17,0.00041643,120]
[339905179,1728147156770,-500.0,0.00041643,120]
[339905180,1728147156782,-1275.76,0.00041643,120]
[339905181,1728147156792,-500.18,0.00041643,120]
[339905182,1728147156802,-500.0,0.00041643,120]
[339905183,1728147156812,-500.0,0.00041643,120]
[339905184,1728147156822,-712.54,0.00041643,120]
[339905185,1728147156832,-500.0,0.00041643,120]
[339905186,1728147156842,-713.19,0.00041643,120]
[339905187,1728147156852,-645.72,0.00041643,120]
[339905188,1728147156862,-1057.7,0.00041643,120]
[339905189,1728147156872,-749.26,0.00041643,120]
[339905190,1728147156881,-500.0,0.00041643,120]
[339905191,1728147156891,-1037.04,0.00041643,120]
[339905192,1728147156901,-688.31,0.00041643,120]
[339905193,1728147156910,-500.0,0.00041643,120]
[339905194,1728147156920,-700.86,0.00041643,120]
[339905195,1728147156929,-997.54,0.00041643,120]
[339905196,1728147156939,-534.2,0.00041643,120]
[339905197,1728147156949,-607.13,0.00041643,120]
[339905198,1728147156959,-500.0,0.00041643,120]
[339905199,1728147156968,-500.98,0.00041643,120]
[339905200,1728147156978,-501.6,0.00041643,120]
[339905201,1728147156988,-1204.65,0.00041643,120]
[339905202,1728147156997,-500.0,0.00041643,120]
[339905203,1728147157007,-542.57,0.00041643,120]
[339905204,1728147157016,-539.24,0.00041643,120]
[339905205,1728147157028,-500.0,0.00041643,120]
[339905206,1728147157037,-1294.2,0.00041643,120]
[339905207,1728147157047,-500.0,0.00041643,30]
[339905208,1728147157056,-6114.95,0.00041643,120]
[339905209,1728147157065,-500.0,0.00041643,120]
[339905210,1728147157075,-610.97,0.00041643,120]
[339905211,1728147157085,-1197.02,0.00041643,120]
[339905212,1728147157094,-500.0,0.00041643,120]
[339905213,1728147157103,-801.24,0.00041643,120]
[339905214,1728147157113,-533.72,0.00041643,120]
[339905215,1728147157123,-500.0,0.00041643,120]
[339905216,1728147157132,-500.0,0.00041643,120]
[339905217,1728147157141,-500.0,0.00041643,120]
[339905218,1728147157151,-973.61,0.00041643,120]
[339905219,1728147157161,-1102.84,0.00041643,120]
[339905220,1728147157170,-743.21,0.00041643,120]
[339905221,1728147157181,-616.19,0.00041643,120]
[339905222,1728147157190,-500.0,0.00041643,120]
[339905223,1728147157200,-500.0,0.00041643,120]
[339905224,1728147157210,-500.0,0.00041643,120]
[339905225,1728147157219,-1463.87,0.00041643,120]
[339905226,1728147157229,-500.0,0.00041643,120]
[339905227,1728147157238,-603.49,0.00041643,120]
[339905228,1728147157248,-500.0,0.00041643,120]
[339905229,1728147157257,-652.66,0.00041643,120]
[339905230,1728147157267,-500.0,0.00041643,120]
[339905231,1728147157278,-857.16,0.00041643,120]
[339905232,1728147157287,-500.0,0.00041643,120]
[339905233,1728147157296,-500.0,0.00041643,120]
[339905234,1728147157308,-500.0,0.00041643,120]
[339905235,1728147157318,-500.0,0.00041643,120]
[339905236,1728147157327,-730.24,0.00041643,120]
[339905237,1728147157337,-1523.37,0.00041643,120]
[339905238,1728147157348,-500.0,0.00041643,120]
[339905239,1728147157358,-500.0,0.00041643,120]
[339905240,1728147157369,-847.59,0.00041643,120]
[339905241,1728147157378,-1257.63,0.00041643,120]
[339905242,1728147157389,-500.0,0.00041643,120]
[339905243,1728147157399,-500.0,0.00041643,120]
[339905244,1728147157409,-500.0,0.00041643,120]
[339905245,1728147157422,-708.16,0.00041643,120]
[339905246,1728147157432,-500.0,0.00041643,120]
[339905247,1728147157442,-500.0,0.00041643,120]
[339905248,1728147157452,-505.37505065,0.00041643,120]
[339905249,1728147157464,-1110.69,0.00041643,120]
[339905250,1728147157474,-500.0,0.00041643,120]
[339905251,1728147157483,-734.55,0.00041643,120]
[339905252,1728147157496,-500.0,0.00041643,120]
[339905253,1728147157505,-500.0,0.00041643,120]